Cogmind - Beta 14 @@@ ROGUE MODE // 2024.09.28 @ 16:37:06 Player: BionicBot Result: Self-destructed Performance ------------- Evolutions (4) 2000 Regions Visited (10) 2000 Robots Destroyed (0) 0 Value Destroyed (0) 0 Prototype IDs (0) 0 Alien Tech Used (0) 0 Bonus (2025) 2025 TOTAL SCORE: 6025 Bonus ------- Pacifist 1325 Entered Garrisons 200 Used RIF Installer 500 Cogmind --------- Core Integrity 605/850 Matter 233/300 Energy 100/100 System Corruption 3% Temperature Cool (0) Movement Core (50) Location -6/Factory Parts ------- > --- POWER (1) -------- (None) > --- PROPULSION (6) --- (None) > --- UTILITY (6) ------ (None) > --- WEAPON (2) ------- (None) > --- INVENTORY (5) ---- VTOL Module Plasma Cannon Scythe Peak State ------------ > --- POWER ------------ (None) > --- PROPULSION ------- VTOL Module VTOL Module > --- UTILITY ---------- Improved Heat Sink > --- WEAPON ----------- Scythe > --- INVENTORY -------- (None) [Rating: 10] Favorites ----------- Power None Propulsion VTOL Module Treads Medium Treads Flight Unit VTOL Module Utility Improved Heat Sink Device Improved Heat Sink Weapon Scythe Slashing Weapon Scythe Build | -11 -10 -9 -9 -8 -7 -7 -7 -6 -6 -6 ------- Run | Yrd Mat Mat Min Mat Fac Low Low Fac Gar Fac Slots Evolved 8 | . . 2 . 2 2 . . 2 . . Power . | . . . . . . . . . . . Propulsion 4 | . . 2 . 2 . . . . . . Utility 4 | . . . . . 2 . . 2 . . Weapon . | . . . . . . . . . . . Parts Attached 10 | . . . 2 . 4 . . 3 1 . Power . | . . . . . . . . . . . Engine . | . . . . . . . . . . . Core . | . . . . . . . . . . . Reactor . | . . . . . . . . . . . Propulsion 8 | . . . 2 . 2 . . 3 1 . Treads 1 | . . . . . . . . 1 . . Leg . | . . . . . . . . . . . Wheel . | . . . . . . . . . . . Hover . | . . . . . . . . . . . Flight 7 | . . . 2 . 2 . . 2 1 . Utility 1 | . . . . . 1 . . . . . Device 1 | . . . . . 1 . . . . . Storage . | . . . . . . . . . . . Processor . | . . . . . . . . . . . Hackware . | . . . . . . . . . . . Protection . | . . . . . . . . . . . Artifact . | . . . . . . . . . . . Weapon 1 | . . . . . 1 . . . . . Energy Gun . | . . . . . . . . . . . Energy Cannon . | . . . . . . . . . . . Ballistic Gun . | . . . . . . . . . . . Ballistic Cannon . | . . . . . . . . . . . Launcher . | . . . . . . . . . . . Special Weapon . | . . . . . . . . . . . Impact Weapon . | . . . . . . . . . . . Slashing Weapon 1 | . . . . . 1 . . . . . Piercing Weapon . | . . . . . . . . . . . Special Melee Weapon . | . . . . . . . . . . . Unidentified Prototypes . | . . . . . . . . . . . Parts Lost 3 | . . . . . . 1 . 1 1 . Power . | . . . . . . . . . . . Propulsion 2 | . . . . . . . . 1 1 . Utility 1 | . . . . . . 1 . . . . Weapon . | . . . . . . . . . . . Highest Loss Streak 1 | . . . . . . 1 . 1 1 . To Critical Strikes . | . . . . . . . . . . . Average Slot Usage (%) 11 | . . . . 7 23 24 . 14 4 . Flight 7 | . . . . 7 15 11 . 9 4 . Device 1 | . . . . . 4 6 . . . . Slashing Weapon 1 | . . . . . 3 5 . . . . Peak Build Rating 10 | . . . 4 4 10 10 1 8 2 . Average Rating 4 | . . . 1 1 7 7 1 6 1 . On Entrance 1 | . . . . 4 . 10 1 1 1 . Naked Turns 192 | . 28 61 21 27 . 15 9 1 30 . Heaviest Build 3 | . . . . . 3 3 . . . . Greatest Support 8 | 3 3 3 8 3 8 4 3 8 4 . Greatest Overweight (x) . | . . . . . . . . . . . Average Overweight (x) . | . . . . . . . . . . . Largest Inventory Capacity 5 | 5 5 5 5 5 5 5 5 5 5 . Average Capacity 5 | 5 5 5 5 5 5 5 5 5 5 . Most Carried 4 | . . 2 2 2 1 4 4 4 4 . Average Carried 1 | . . . 1 1 . 1 4 2 3 . Final Capacity 5 | 5 5 5 5 5 5 5 5 5 5 5 Final Carried 4 | . . 2 . 2 1 4 4 4 3 3 Class Distribution -------------------- 86% | Mutant 13% | Sprinter Dominant Class ---------------- Mutant | -10/Materials Mutant | -9/Materials Mutant | -9/Mines Mutant | -8/Materials Sprinter | -7/Factory Mutant | -7/Lower Caves Mutant | -7/Lower Caves Mutant | -6/Factory Mutant | -6/Garrison Mutant | -6/Factory Resources | -11 -10 -9 -9 -8 -7 -7 -7 -6 -6 -6 ----------- Run | Yrd Mat Mat Min Mat Fac Low Low Fac Gar Fac Matter Collected 232 | 43 . . 56 . 133 . . . . . Remotely . | . . . . . . . . . . . Salvage Created . | . . . . . . . . . . . Parts . | . . . . . . . . . . . Haulers Intercepted . | . . . . . . . . . . . Recyclers Shooed . | . . . . . . . . . . . Parts Field Recycled . | . . . . . . . . . . . Retrieved Matter . | . . . . . . . . . . . Parts Self-Destructed 3 | . . . . . . 3 . . . . Prevented . | . . . . . . . . . . . Kills | -11 -10 -9 -9 -8 -7 -7 -7 -6 -6 -6 ------- Run | Yrd Mat Mat Min Mat Fac Low Low Fac Gar Fac Combat Hostiles Destroyed . | . . . . . . . . . . . Classes Destroyed . | . . . . . . . . . . . Best Kill Streak . | . . . . . . . . . . . Combat Bots Only . | . . . . . . . . . . . Max Kills in Single Turn . | . . . . . . . . . . . Gunslinging . | . . . . . . . . . . . Exploded . | . . . . . . . . . . . Melee . | . . . . . . . . . . . Uniques/NPCs Destroyed . | . . . . . . . . . . . Combat | -11 -10 -9 -9 -8 -7 -7 -7 -6 -6 -6 -------- Run | Yrd Mat Mat Min Mat Fac Low Low Fac Gar Fac Hostile Shots Fired 215 | . 26 44 17 27 . 43 2 39 17 . Missed 92 | . 9 21 4 12 . 18 . 17 11 . Damage Taken 1572 | . 141 278 110 165 . 387 35 360 96 . Core 1265 | . 141 278 110 165 . 291 35 163 82 . Absorbed by Shields . | . . . . . . . . . . . Core Remaining (%) 53 | 100 43 . 3 70 . . 53 . . . Volleys Fired . | . . . . . . . . . . . Largest . | . . . . . . . . . . . Hottest . | . . . . . . . . . . . Shots Fired . | . . . . . . . . . . . Gun . | . . . . . . . . . . . Cannon . | . . . . . . . . . . . Launcher . | . . . . . . . . . . . Special . | . . . . . . . . . . . Kinetic . | . . . . . . . . . . . Thermal . | . . . . . . . . . . . Explosive . | . . . . . . . . . . . Electromagnetic . | . . . . . . . . . . . Robot Hit Streak . | . . . . . . . . . . . Robot Miss Streak . | . . . . . . . . . . . Penetration Max . | . . . . . . . . . . . Secondary Targets . | . . . . . . . . . . . Shots Hit Robots . | . . . . . . . . . . . Core Hits . | . . . . . . . . . . . Critical Kills . | . . . . . . . . . . . Critical Parts Destroyed . | . . . . . . . . . . . Critical Strikes . | . . . . . . . . . . . Melee Attacks 2 | . . . . . 2 . . . . . Impact . | . . . . . . . . . . . Slashing 2 | . . . . . 2 . . . . . Piercing . | . . . . . . . . . . . Sneak Attacks . | . . . . . . . . . . . Combat Hostiles . | . . . . . . . . . . . Follow-up Attacks . | . . . . . . . . . . . Damage Inflicted 6 | . . . 6 . . . . . . . Guns . | . . . . . . . . . . . Cannons . | . . . . . . . . . . . Explosions . | . . . . . . . . . . . Melee . | . . . . . . . . . . . Ramming 6 | . . . 6 . . . . . . . Kinetic . | . . . . . . . . . . . Thermal . | . . . . . . . . . . . Explosive . | . . . . . . . . . . . Electromagnetic . | . . . . . . . . . . . Impact . | . . . . . . . . . . . Slashing . | . . . . . . . . . . . Piercing . | . . . . . . . . . . . Highest Corruption 3 | . . . . . . . . 3 3 . Average Corruption 2 | . . . . . . . . 2 3 . Corruption Purged . | . . . . . . . . . . . Corruption Blocked . | . . . . . . . . . . . Effects 3 | . . . . . . . . 1 2 . Matter Fused 2 | . . . . . . . . 1 1 . Data Loss (minor) 1 | . . . . . . . . . 1 . Overload Shots . | . . . . . . . . . . . Overflow Damage . | . . . . . . . . . . . Projectiles . | . . . . . . . . . . . Explosions . | . . . . . . . . . . . Melee . | . . . . . . . . . . . Knockbacks 1 | . . . 1 . . . . . . . Impact 1 | . . . 1 . . . . . . . Kinetic . | . . . . . . . . . . . Secondary . | . . . . . . . . . . . Self-Inflicted Damage 3 | . . . 3 . . . . . . . Shots . | . . . . . . . . . . . Rammed 1 | . . . 1 . . . . . . . Targets Rammed 1 | . . . 1 . . . . . . . Kicked . | . . . . . . . . . . . Crushed . | . . . . . . . . . . . Highest Temperature 8 | . . 8 . . . . . . . . Average Temperature 8 | . . 8 . . . . . . . . Received Heat Transfer 234 | . 12 123 . 72 . . 18 9 . . Siege Activations . | . . . . . . . . . . . Robots Corrupted . | . . . . . . . . . . . Combat Hostiles . | . . . . . . . . . . . Parts Fried . | . . . . . . . . . . . Impact Corruptions . | . . . . . . . . . . . Robots Melted . | . . . . . . . . . . . Combat Hostiles . | . . . . . . . . . . . Parts Melted . | . . . . . . . . . . . Heat Transferred . | . . . . . . . . . . . Parts Sabotaged . | . . . . . . . . . . . Parts Stolen . | . . . . . . . . . . . Parts Stripped . | . . . . . . . . . . . Power Chain Reactions . | . . . . . . . . . . . Alert | -11 -10 -9 -9 -8 -7 -7 -7 -6 -6 -6 ------- Run | Yrd Mat Mat Min Mat Fac Low Low Fac Gar Fac Peak Influence 167 | . 45 48 78 44 21 . . 144 167 . Initial 100 | . . 18 18 29 19 . . 100 93 81 Average 61 | . 18 31 43 32 19 . . 109 112 . Maximum Alert Level . | . . . . . . . . . . . Low Security (%) 100 | 100 100 100 100 100 100 . . 100 100 . Level 1 . | . . . . . . . . . . . Level 2 . | . . . . . . . . . . . Level 3 . | . . . . . . . . . . . Level 4 . | . . . . . . . . . . . Level 5 . | . . . . . . . . . . . High Security . | . . . . . . . . . . . Max Security . | . . . . . . . . . . . Squads Dispatched 4 | . 2 . . 1 . . . 1 . . Investigation 1 | . 1 . . . . . . . . . Extermination . | . . . . . . . . . . . Reinforcement 3 | . 1 . . 1 . . . 1 . . Assault . | . . . . . . . . . . . Garrison . | . . . . . . . . . . . Intercept . | . . . . . . . . . . . Searches Triggered . | . . . . . . . . . . . Construction Impeded . | . . . . . . . . . . . Haulers Reinforced . | . . . . . . . . . . . Active Scanning Responses . | . . . . . . . . . . . Cargo Convoy Interrupts . | . . . . . . . . . . . Stealth | -11 -10 -9 -9 -8 -7 -7 -7 -6 -6 -6 --------- Run | Yrd Mat Mat Min Mat Fac Low Low Fac Gar Fac Distress Signals 2 | . . 2 . . . . . . . . Communications Jammed . | . . . . . . . . . . . Distress Signals . | . . . . . . . . . . . Times Spotted 84 | . 11 17 6 9 1 16 4 9 11 . Peak Tracking Total 17 | . 10 17 4 9 . 7 4 8 13 . Tactical Retreats 7 | . . . 1 . . 5 . . 1 . Traps | -11 -10 -9 -9 -8 -7 -7 -7 -6 -6 -6 ------- Run | Yrd Mat Mat Min Mat Fac Low Low Fac Gar Fac Traps Triggered 5 | . 1 . . . 1 . . 2 1 . Indirectly . | . . . . . . . . . . . Trap Hack Attempts . | . . . . . . . . . . . Triggered . | . . . . . . . . . . . Disarmed . | . . . . . . . . . . . Reprogrammed . | . . . . . . . . . . . Reused . | . . . . . . . . . . . Traps Extracted . | . . . . . . . . . . . Installed . | . . . . . . . . . . . Triggered . | . . . . . . . . . . . Machines | -11 -10 -9 -9 -8 -7 -7 -7 -6 -6 -6 ---------- Run | Yrd Mat Mat Min Mat Fac Low Low Fac Gar Fac Machines Disabled . | . . . . . . . . . . . Max in Single Turn . | . . . . . . . . . . . Machines Repaired . | . . . . . . . . . . . Machines Dismantled . | . . . . . . . . . . . Machines Sabotaged . | . . . . . . . . . . . Overloaded Fab Kills . | . . . . . . . . . . . Hacking | -11 -10 -9 -9 -8 -7 -7 -7 -6 -6 -6 --------- Run | Yrd Mat Mat Min Mat Fac Low Low Fac Gar Fac Machines Accessed 5 | . . . . . 2 . . 2 1 . Terminals 4 | . . . . . 2 . . 1 1 . Fabricators . | . . . . . . . . . . . Repair Stations . | . . . . . . . . . . . Recycling Units . | . . . . . . . . . . . Scanalyzers . | . . . . . . . . . . . Garrison Access 1 | . . . . . . . . 1 . . Total Hacks 9 | . . . . . 4 . . 3 2 . Successful 3 | . . . . . . . . 2 1 . Failed 6 | . . . . . 4 . . 1 1 . Catastrophic . | . . . . . . . . . . . Database Lockouts . | . . . . . . . . . . . Manual 4 | . . . . . 2 . . 2 . . Terminals 8 | . . . . . 4 . . 2 2 . Fabricators . | . . . . . . . . . . . Repair Stations . | . . . . . . . . . . . Recycling Units . | . . . . . . . . . . . Scanalyzers . | . . . . . . . . . . . Garrison Access 1 | . . . . . . . . 1 . . Terminal Hacks 1 | . . . . . . . . . 1 . Emergency Access Points 1 | . . . . . . . . . 1 . Fabricator Hacks . | . . . . . . . . . . . Repair Station Hacks . | . . . . . . . . . . . Recycling Unit Hacks . | . . . . . . . . . . . Scanalyzer . | . . . . . . . . . . . Garrison Access Hacks 1 | . . . . . . . . 1 . . Unlock Access 1 | . . . . . . . . 1 . . Unauthorized Hacks 1 | . . . . . . . . 1 . . Terminals 1 | . . . . . . . . 1 . . Botnet 1 | . . . . . . . . 1 . . Fabricators . | . . . . . . . . . . . Repair Stations . | . . . . . . . . . . . Recycling Units . | . . . . . . . . . . . Scanalyzers . | . . . . . . . . . . . Garrison Access . | . . . . . . . . . . . Data Cores Recovered . | . . . . . . . . . . . Used . | . . . . . . . . . . . Hacking Detections 3 | . . . . . 2 . . . 1 . Full Trace Events . | . . . . . . . . . . . Feedback Events . | . . . . . . . . . . . Feedback Blocked . | . . . . . . . . . . . Robot Schematics Acquired . | . . . . . . . . . . . Robots Built . | . . . . . . . . . . . Authchips . | . . . . . . . . . . . Time . | . . . . . . . . . . . Total Robot Build Rating . | . . . . . . . . . . . Part Schematics Acquired . | . . . . . . . . . . . Parts Built . | . . . . . . . . . . . Authchips . | . . . . . . . . . . . Time . | . . . . . . . . . . . Total Part Build Rating . | . . . . . . . . . . . Parts Repaired . | . . . . . . . . . . . Time . | . . . . . . . . . . . Parts Recycled . | . . . . . . . . . . . Recycled Matter . | . . . . . . . . . . . Retrieved Matter . | . . . . . . . . . . . Retrieved Components . | . . . . . . . . . . . Parts Scanalyzed . | . . . . . . . . . . . Part Schematics Acquired . | . . . . . . . . . . . Parts Damaged . | . . . . . . . . . . . Bothacking | -11 -10 -9 -9 -8 -7 -7 -7 -6 -6 -6 ------------ Run | Yrd Mat Mat Min Mat Fac Low Low Fac Gar Fac Used RIF Installer 1 | . . . . . . . . . 1 . Robots Hacked . | . . . . . . . . . . . Non-combat . | . . . . . . . . . . . Combat . | . . . . . . . . . . . Robot Hacks Applied . | . . . . . . . . . . . Relay Couplers Released . | . . . . . . . . . . . Fabnet Peak Effective % . | . . . . . . . . . . . Robots Rewired . | . . . . . . . . . . . Allies Hacked . | . . . . . . . . . . . Hacks Repelled . | . . . . . . . . . . . Allies | -11 -10 -9 -9 -8 -7 -7 -7 -6 -6 -6 -------- Run | Yrd Mat Mat Min Mat Fac Low Low Fac Gar Fac Total Allies . | . . . . . . . . . . . Largest Group . | . . . . . . . . . . . Highest-Rated Group . | . . . . . . . . . . . Highest-Rated Ally . | . . . . . . . . . . . Total Orders . | . . . . . . . . . . . Ally Attacks . | . . . . . . . . . . . Total Damage . | . . . . . . . . . . . Kills . | . . . . . . . . . . . Allies Corrupted . | . . . . . . . . . . . Allies Melted . | . . . . . . . . . . . Intel | -11 -10 -9 -9 -8 -7 -7 -7 -6 -6 -6 ------- Run | Yrd Mat Mat Min Mat Fac Low Low Fac Gar Fac Robot Analysis Total . | . . . . . . . . . . . Derelict Logs Recovered 1 | . . . 1 . . . . . . . Drone Launches . | . . . . . . . . . . . Drone Recoveries . | . . . . . . . . . . . Exploration | -11 -10 -9 -9 -8 -7 -7 -7 -6 -6 -6 ------------- Run | Yrd Mat Mat Min Mat Fac Low Low Fac Gar Fac Turns Passed 534 | 9 28 61 30 46 84 86 9 96 85 . Spaces Moved 1178 | 18 56 118 62 90 190 223 17 189 215 . Core 489 | 18 56 118 40 90 . 45 17 47 58 . Treads . | . . . . . . . . . . . Legs . | . . . . . . . . . . . Wheels . | . . . . . . . . . . . Hover . | . . . . . . . . . . . Flight 689 | . . . 22 . 190 178 . 142 157 . Fastest Speed 32 | 50 50 50 32 50 32 35 50 32 35 . Average Speed 42 | 50 50 50 43 50 32 38 50 47 39 . Slowest Speed 52 | 50 50 50 50 50 35 50 50 52 50 . Overloaded Moves . | . . . . . . . . . . . Propulsion Burnouts . | . . . . . . . . . . . Robots Hopped 2 | . . . . . 2 . . . . . Cave-ins Triggered . | . . . . . . . . . . . Exploration Rate (%) 17 | 3 20 20 17 20 8 43 2 10 36 . Regions Visited 10 Branch Regions 3 Pre-discovered Areas . | . . . . . . . . . . . Known Exits Taken 2 | . . . . 1 . . . 1 . . Unknown Exits Taken 7 | 1 1 1 1 . 1 1 1 . . . Scrap Searched 2 | . . . 1 . . 1 . . . . Spaces Dug 2 | . . . . . 2 . . . . . Terrain Destroyed 2 | . . . . . 2 . . . . . Melee 2 | . . . . . 2 . . . . . Projectile . | . . . . . . . . . . . AOE . | . . . . . . . . . . . Terrain Rammed . | . . . . . . . . . . . Walls Destroyed . | . . . . . . . . . . . Machines Disabled . | . . . . . . . . . . . Actions | -11 -10 -9 -9 -8 -7 -7 -7 -6 -6 -6 --------- Run | Yrd Mat Mat Min Mat Fac Low Low Fac Gar Fac Total 1200 | 17 55 119 64 91 205 225 16 194 214 . Wait . | . . . . . . . . . . . Move 1165 | 17 55 117 62 89 185 222 16 189 213 . Hop 2 | . . . . . 2 . . . . . Pick Up 3 | . . 2 . . 1 . . . . . Fast Attach 3 | . . . . . 2 . . 1 . . Attach 7 | . . . 2 . 2 . . 2 1 . Detach 7 | . . . . 2 . 3 . 2 . . Swap . | . . . . . . . . . . . Drop . | . . . . . . . . . . . Fire . | . . . . . . . . . . . Melee 2 | . . . . . 2 . . . . . Ram . | . . . . . . . . . . . Kick . | . . . . . . . . . . . Crush . | . . . . . . . . . . . Escape Stasis 11 | . . . . . 11 . . . . . Rewire . | . . . . . . . . . . . Trap . | . . . . . . . . . . . Miscellaneous . | . . . . . . . . . . . Route ------- -11/Scrapyard -10/Materials -9/Materials -9/Mines -8/Materials (discovered 2 exits: *Fac x2) -7/Factory -7/Lower Caves -7/Lower Caves -6/Factory -6/Garrison (discovered 2 exits: [*Fac x2]) -6/Factory History --------- Turn | Location | Event 4 | -11/Scrapyard | Discovered new exit (range 12) 10 | -11/Scrapyard | Entered Materials 31 | -10/Materials | Discovered new exit (range 15) 38 | -10/Materials | Core integrity fell below 50% 38 | -10/Materials | Entered another Materials area 38 | -9/Materials | Evolved 2 slots: Propulsion x2 85 | -9/Materials | Core integrity fell below 50% 92 | -9/Materials | Discovered new exit (range 8) 99 | -9/Materials | Entered Mines 102 | -9/Mines | Core integrity fell below 20% 124 | -9/Mines | Discovered new exit (range 14) 125 | -9/Mines | Learned 8 Materials zone layouts 129 | -9/Mines | Entered Materials 129 | -8/Materials | Evolved 2 slots: Propulsion x2 130 | -8/Materials | Identified exit to Factory 175 | -8/Materials | Entered Factory 175 | -7/Factory | Evolved 2 slots: Utility x2 256 | -7/Factory | Discovered new exit (range 9) 259 | -7/Factory | Entered Lower Caves 305 | -7/Lower Caves | Encountered a Warlord checkpoint 340 | -7/Lower Caves | Discovered new exit (range 12) 345 | -7/Lower Caves | Entered another Lower Caves area 349 | -7/Lower Caves | Discovered new exit (range 10) 354 | -7/Lower Caves | Entered Factory 354 | -6/Factory | Evolved 2 slots: Utility x2 450 | -6/Factory | Identified exit to Garrison 450 | -6/Factory | Entered Garrison 495 | -6/Garrison | Discovered new exit (range 10) 498 | -6/Garrison | Attempted to access garrison exit controls, blocked by remote lockdown 512 | -6/Garrison | Triggered checkpoint 514 | -6/Garrison | Triggered checkpoint 514 | -6/Garrison | Triggered checkpoint 524 | -6/Garrison | Discovered new exit (range 14) 532 | -6/Garrison | Installed Relay Interface Framework 535 | -6/Garrison | Entered Factory 535 | -6/Factory | Self-destructed Last Messages --------------- Map updated. 00495_ EXIT=FOUND 00498_ Attempting to access garrison exit controls... 00498_ Remote lockdown engaged. 00512_ Beams of light sweep through the air. An alarm sounds. 00514_ C-30 ARC bursts open, deploying its payload. 00514_ G-67 Veteran unfolds itself. 00514_ G-50 Soldier unfolds itself. 00514_ Beams of light sweep through the air. An alarm sounds. 00519_ System corrupted: Component data lost. 00524_ EXIT=FOUND Initiating installation procedure... 00532_ Relay Interface Framework installed. 00532_ Triggered Alarm Trap. 00532_ An alarm sounds. 00534_ VTOL Module destroyed. 00535_ Attempting to access garrison exit controls... RIF authorized. LOCATION=UNKNOWN GOAL=ESCAPE Map ----- +----------------------------------------------------+ | ?????????????????????????????????????? | | ?????????????????????????????????????? | | ?????????????????????????????????????? | | ?????????????????????????????????????? | | ?????????????????????????????????????? | | ?????????????????????????????????????? | | ?????????????????????????????????????? | | ?????????????????????????????????????? | | ?????????????????????????????????????? | | ?????????????????????????????????????? | | ?????????????????????????????????????? | | ?????????????????????????????????????? | | ?????????????????????????????????????? | | ?????????????????????????????????????? | | ?????????????????????????????????????? | | ?????????????????????????????????????? | | ?????????????????????????????????????? | | ?????????????????????????????????????? | | ?????????????????????????????????????? | | ?????????????????????????????????????? | | ?????????????????????????????????????? | | ?????????????????????????????????????? | | ??????????################# ?????????? | | ??????????# ????????? | | ??????????# ????????? | | ??????????# @ ????????? | | ??????????# ????????? | | ??????????# ????????? | | ??????????####+############ ?????????? | | ?????????????????????????????????????? | | ?????????????????????????????????????? | | ?????????????????????????????????????? | | ?????????????????????????????????????? | | ?????????????????????????????????????? | | ?????????????????????????????????????? | | ?????????????????????????????????????? | | ?????????????????????????????????????? | | ?????????????????????????????????????? | | ?????????????????????????????????????? | | ?????????????????????????????????????? | | ?????????????????????????????????????? | | ?????????????????????????????????????? | | ?????????????????????????????????????? | | ?????????????????????????????????????? | | ?????????????????????????????????????? | | ?????????????????????????????????????? | | ?????????????????????????????????????? | | ?????????????????????????????????????? | | | | | +----------------------------------------------------+ Best States ------------- Heat Dissipation 48 Energy Generation 5 Energy Capacity 100 Matter Stores 280 Matter Capacity 300 Sight Range 16 Terrain Scan Density 10 Evasion (%) 63 Item Schematics ----------------- None Robot Schematics ------------------ None Fabricated ------------ Nothing Alien Tech Used ----------------- None Achievements -------------- None Challenges ------------ None Game ------ Seed RiotMagneticPlatform Manual? 0 Play Time 00:11:54 Cumulative 173.9 hours Start 2024.09.28 @ 16:23:41 End 2024.09.28 @ 16:37:06 Sessions 1 Manual Loads 0 Difficulty Rogue Special Mode None Game No. 133 Rogue 133 Adventurer 0 Explorer 0 Win Type - Total 8 Types 7/0/1/0/0/0/0/0/0 Lore% 44 Gallery% 58 Achievement% 56 Wizard Run 0 Options --------- Layout 0 ASCII 0 Keyboard 1 Movement Numpad Keybinds 0 Fullscreen 2 Font 18/X11 Map View 76x50 Zoom Use 0% Tactical HUD 1 Map Filters NONE Filters NONE Steam 1 RUN: 58b5daec-f55a-4c47-ae60-c65761af9f71